fUSD/lending_fUSD_20250823
["ID","MTS","AMOUNT","RATE_DAILY","PERIOD"]
[381008185,1755939052263,-458.83,0.00013698,2]
[381008186,1755939052272,-586.64,0.00013698,2]
[381008187,1755939052281,-486.38,0.00013698,2]
[381008188,1755939052290,-400.0,0.00013698,2]
[381008189,1755939052300,-400.0,0.00013698,2]
[381008190,1755939052309,-400.0,0.00013698,2]
[381008191,1755939052319,-419.44,0.00013698,2]
[381008192,1755939052329,-400.0,0.00013698,2]
[381008193,1755939052338,-400.0,0.00013698,2]
[381008194,1755939052348,-776.34,0.00013698,2]
[381008195,1755939052358,-401.99337387,0.00013698,2]
[381008196,1755939052368,-373.15057565,0.00013698,2]
[381008197,1755939052379,-593.25,0.00013698,2]
[381008198,1755939052388,-400.0,0.00013698,2]
[381008199,1755939052398,-669.09,0.00013698,2]
[381008200,1755939052407,-2892.92,0.00013698,2]
[381008201,1755939052417,-931.49,0.00013698,2]
[381008202,1755939052426,-970.7,0.00013698,2]
[381008203,1755939052436,-400.0,0.00013698,2]
[381008204,1755939052445,-401.84126967,0.00013698,2]
[381008205,1755939052455,-400.0,0.00013698,2]
[381008206,1755939052464,-827.96,0.00013698,2]
[381008207,1755939052473,-1826.96,0.00013698,2]
[381008208,1755939052482,-400.0,0.00013698,2]
[381008209,1755939052492,-400.0,0.00013698,2]
[381008210,1755939052501,-401.23909736,0.00013698,2]
[381008211,1755939052511,-460.04,0.00013698,2]
[381008212,1755939052520,-1226.13,0.00013698,2]
[381008213,1755939052530,-3020.82,0.00013698,2]
[381008214,1755939052540,-611.24,0.00013698,2]
[381008215,1755939052550,-406.38427549,0.00013698,2]
[381008216,1755939052559,-2118.54,0.00013698,2]
[381008217,1755939052569,-605.11,0.00013698,2]
[381008218,1755939052579,-400.0,0.00013698,2]
[381008219,1755939052588,-604.08,0.00013698,2]
[381008220,1755939052598,-402.96979918,0.00013698,2]
[381008221,1755939052607,-786.08,0.00013698,2]
[381008222,1755939052617,-400.0,0.00013698,2]
[381008223,1755939052627,-400.0,0.00013698,2]
[381008224,1755939052637,-1113.52,0.00013698,2]
[381008225,1755939052648,-703.7,0.00013698,2]
[381008226,1755939052657,-400.0,0.00013698,2]
[381008227,1755939052667,-400.0,0.00013698,2]
[381008228,1755939052676,-692.0,0.00013698,2]
[381008229,1755939052686,-411.92,0.00013698,2]
[381008230,1755939052698,-1585.8,0.00013698,2]
[381008231,1755939052708,-400.0,0.00013698,2]
[381008232,1755939052718,-629.97,0.00013698,2]
[381008233,1755939052728,-1007.14,0.00013698,2]
[381008234,1755939052738,-787.29,0.00013698,2]
[381008235,1755939052748,-529.31,0.00013698,2]
[381008236,1755939052757,-583.53,0.00013698,2]
[381008237,1755939052766,-504.22,0.00013698,2]
[381008238,1755939052776,-400.0,0.00013698,2]
[381008239,1755939052787,-400.0,0.00013698,2]
[381008240,1755939052797,-400.0,0.00013698,2]
[381008241,1755939052806,-587.49,0.00013698,2]
[381008242,1755939052815,-400.0,0.00013698,2]
[381008243,1755939052825,-866.11,0.00013698,2]
[381008244,1755939052835,-1125.68,0.00013698,2]
[381008245,1755939052844,-400.0,0.00013698,2]
[381008246,1755939052853,-1557.8,0.00013698,2]
[381008247,1755939052862,-1360.81,0.00013698,2]
[381008248,1755939052872,-700.31,0.00013698,2]
[381008249,1755939052882,-1129.31,0.00013698,2]
[381008250,1755939052892,-1043.98,0.00013698,2]
[381008251,1755939052902,-622.11,0.00013698,2]
[381008252,1755939052912,-686.23,0.00013698,2]
[381008253,1755939052921,-666.69,0.00013698,2]
[381008254,1755939052931,-400.0,0.00013698,2]
[381008255,1755939052941,-400.0,0.00013698,2]
[381008256,1755939053139,-1528.14,0.00013698,2]
[381008257,1755939053180,-400.0,0.00013698,2]
[381008258,1755939053191,-1005.74,0.00013698,2]
[381008259,1755939053200,-493.59,0.00013698,2]
[381008260,1755939053210,-400.0,0.00013698,2]
[381008261,1755939053220,-1082.98,0.00013698,2]
[381008262,1755939053229,-667.15,0.00013698,2]
[381008263,1755939053239,-400.0,0.00013698,2]
[381008264,1755939053251,-472.14,0.00013698,2]
[381008265,1755939053261,-400.0,0.00013698,2]
[381008266,1755939053270,-400.0,0.00013698,2]
[381008267,1755939053280,-718.17,0.00013698,2]
[381008268,1755939053289,-400.0,0.00013698,2]
[381008269,1755939053299,-400.0,0.00013698,2]
[381008270,1755939053309,-400.0,0.00013698,2]
[381008271,1755939053318,-668.03,0.00013698,2]
[381008272,1755939053330,-400.0,0.00013698,2]
[381008273,1755939053341,-1238.33,0.00013698,2]
[381008274,1755939053351,-454.19,0.00013698,2]
[381008275,1755939053360,-1197.1,0.00013698,2]
[381008276,1755939053372,-2684.24,0.00013698,2]
[381008277,1755939053382,-400.0,0.00013698,2]
[381008278,1755939053392,-400.0,0.00013698,2]
[381008279,1755939053402,-400.0,0.00013698,2]
[381008280,1755939053413,-690.06,0.00013698,2]
[381008281,1755939053423,-400.0,0.00013698,2]
[381008282,1755939053433,-637.11,0.00013698,2]
[381008283,1755939053443,-409.41,0.00013698,2]
[381008284,1755939053453,-414.92,0.00013698,2]
[381008285,1755939053463,-445.1,0.00013698,2]
[381008286,1755939053473,-400.0,0.00013698,2]
[381008287,1755939053484,-1041.06,0.00013698,2]
[381008288,1755939053493,-400.0,0.00013698,2]
[381008289,1755939053503,-400.0,0.00013698,2]
[381008290,1755939053513,-607.83,0.00013698,2]
[381008291,1755939053522,-400.0,0.00013698,2]
[381008292,1755939053532,-401.91998842,0.00013698,2]
[381008293,1755939053541,-522.33,0.00013698,2]
[381008294,1755939053551,-400.0,0.00013698,2]
[381008295,1755939053561,-566.52,0.00013698,2]
[381008296,1755939053570,-400.0,0.00013698,2]
[381008297,1755939053579,-400.84161602,0.00013698,2]
[381008298,1755939053590,-400.0,0.00013698,2]
[381008299,1755939053614,-400.0,0.00013698,2]
[381008300,1755939053623,-400.0,0.00013698,2]
[381008301,1755939053633,-855.94,0.00013698,2]
[381008302,1755939053642,-630.85,0.00013698,2]
[381008303,1755939053652,-1311.72,0.00013698,2]
[381008304,1755939053662,-400.0,0.00013698,2]
[381008305,1755939053671,-647.39,0.00013698,2]
[381008306,1755939053681,-467.67,0.00013698,2]
[381008307,1755939053691,-834.9,0.00013698,2]
[381008308,1755939053705,-1397.26,0.00013698,2]
[381008309,1755939053715,-672.3,0.00013698,2]
[381008310,1755939053725,-400.0,0.00013698,2]
[381008311,1755939053735,-729.75,0.00013698,2]
[381008312,1755939053746,-400.0,0.00013698,2]
[381008313,1755939053756,-400.0,0.00013698,2]
[381008314,1755939053765,-686.64,0.00013698,2]
[381008315,1755939053778,-604.32,0.00013698,2]
[381008316,1755939053787,-427.47,0.00013698,2]
[381008317,1755939053797,-2357.96,0.00013698,2]
[381008318,1755939053807,-790.97,0.00013698,2]
[381008319,1755939053816,-529.57754124,0.00013698,2]
[381008320,1755939053826,-400.0,0.00013698,2]
[381008321,1755939053835,-400.0,0.00013698,2]
[381008322,1755939053845,-400.0,0.00013698,2]
[381008323,1755939053854,-2325.6,0.00013698,2]
[381008324,1755939053864,-400.0,0.00013698,2]
[381008325,1755939053874,-892.57,0.00013698,2]
[381008326,1755939053885,-745.26,0.00013698,2]
[381008327,1755939053895,-1287.92,0.00013698,2]
[381008328,1755939053904,-2770.66,0.00013698,2]
[381008329,1755939053914,-400.0,0.00013698,2]
[381008330,1755939053923,-401.91643668,0.00013698,2]
[381008331,1755939053933,-400.0,0.00013698,2]
[381008332,1755939053943,-400.0,0.00013698,2]
[381008333,1755939053952,-685.37,0.00013698,2]
[381008334,1755939053962,-400.0,0.00013698,2]
[381008335,1755939053972,-924.8,0.00013698,2]
[381008336,1755939053981,-400.0,0.00013698,2]
[381008337,1755939053991,-400.0,0.00013698,2]
[381008338,1755939054000,-407.18,0.00013698,2]
[381008339,1755939054010,-677.07,0.00013698,2]
[381008340,1755939054019,-402.71,0.00013698,2]
[381008341,1755939054028,-1750.99,0.00013698,2]
[381008342,1755939054038,-400.0,0.00013698,2]
[381008343,1755939054048,-792.71,0.00013698,2]
[381008344,1755939054057,-400.0,0.00013698,2]
[381008345,1755939054067,-423.31,0.00013698,2]
[381008346,1755939054076,-508.92,0.00013698,2]
[381008347,1755939054085,-839.44,0.00013698,2]
[381008348,1755939054095,-446.74,0.00013698,2]
[381008349,1755939054105,-591.71,0.00013698,2]
[381008350,1755939054114,-944.25,0.00013698,2]
[381008351,1755939054124,-1605.79,0.00013698,2]
[381008352,1755939054133,-502.39,0.00013698,2]
[381008353,1755939054143,-400.0,0.00013698,2]
[381008354,1755939054152,-400.0,0.00013698,2]
[381008355,1755939054162,-400.0,0.00013698,2]
[381008356,1755939054171,-1231.43,0.00013698,2]
[381008357,1755939054180,-954.21,0.00013698,2]
[381008358,1755939054189,-400.0,0.00013698,2]
[381008359,1755939054198,-1067.81,0.00013698,2]
[381008360,1755939054208,-1114.49,0.00013698,2]
[381008361,1755939054217,-966.95,0.00013698,2]
[381008362,1755939054227,-400.0,0.00013698,2]
[381008363,1755939054236,-1006.15,0.00013698,2]
[381008364,1755939054245,-400.0,0.00013698,2]
[381008365,1755939054254,-400.0,0.00013698,2]
[381008366,1755939054263,-401.15546072,0.00013698,2]
[381008367,1755939054273,-582.05,0.00013698,2]
[381008368,1755939054282,-681.49,0.00013698,2]
[381008369,1755939054291,-472.02,0.00013698,2]
[381008370,1755939054300,-400.0,0.00013698,2]
[381008371,1755939054310,-600.62,0.00013698,2]
[381008372,1755939054319,-400.0,0.00013698,2]
[381008373,1755939054328,-3311.61,0.00013698,2]
[381008374,1755939054337,-1016.95,0.00013698,2]
[381008375,1755939054347,-400.0,0.00013698,2]
[381008376,1755939054356,-636.18,0.00013698,2]
[381008377,1755939054367,-2900.39,0.00013698,2]
[381008378,1755939054376,-400.0,0.00013698,2]
[381008379,1755939054386,-848.38,0.00013698,2]
[381008380,1755939054396,-649.11,0.00013698,2]
[381008381,1755939054405,-1619.12,0.00013698,2]
[381008382,1755939054415,-715.33,0.00013698,2]
[381008383,1755939054424,-873.77,0.00013698,2]
[381008384,1755939054434,-400.0,0.00013698,2]
[381008385,1755939054444,-478.58,0.00013698,2]
[381008386,1755939054453,-400.0,0.00013698,2]
[381008387,1755939054463,-901.32,0.00013698,2]
[381008388,1755939054472,-1000.0,0.00013698,2]
[381008389,1755939054482,-873.94,0.00013698,2]
[381008390,1755939054491,-554.17,0.00013698,2]
[381008391,1755939054501,-400.0,0.00013698,2]
[381008392,1755939054511,-400.0,0.00013698,2]
[381008393,1755939054521,-400.0,0.00013698,2]
[381008394,1755939054530,-824.26,0.00013698,2]
[381008395,1755939054540,-615.53,0.00013698,2]
[381008396,1755939054549,-400.0,0.00013698,2]
[381008397,1755939054559,-816.18,0.00013698,2]
[381008398,1755939054568,-400.0,0.00013698,2]
[381008399,1755939054577,-409.8377083,0.00013698,2]
[381008400,1755939054587,-760.57,0.00013698,2]
[381008401,1755939054596,-400.0,0.00013698,2]
[381008402,1755939054606,-603.06,0.00013698,2]
[381008403,1755939054616,-952.12,0.00013698,2]
[381008404,1755939054626,-656.84,0.00013698,2]
[381008405,1755939054635,-453.18,0.00013698,2]
[381008406,1755939054644,-400.0,0.00013698,2]
[381008407,1755939054654,-477.47,0.00013698,2]
[381008408,1755939054664,-449.76,0.00013698,2]
[381008409,1755939054673,-921.46,0.00013698,2]
[381008410,1755939054682,-856.61,0.00013698,2]
[381008411,1755939054692,-674.07,0.00013698,2]
[381008412,1755939054705,-954.18,0.00013698,2]
[381008413,1755939054715,-400.0,0.00013698,2]
[381008414,1755939054724,-400.0,0.00013698,2]
[381008415,1755939054733,-566.68,0.00013698,2]
[381008416,1755939054743,-400.0,0.00013698,2]
[381008417,1755939054753,-1088.13,0.00013698,2]
[381008418,1755939054762,-400.0,0.00013698,2]
[381008419,1755939054772,-923.07,0.00013698,2]
[381008420,1755939054782,-752.12,0.00013698,2]
[381008421,1755939054792,-400.0,0.00013698,2]
[381008422,1755939054801,-414.1,0.00013698,2]
[381008423,1755939054811,-400.0,0.00013698,2]
[381008424,1755939054820,-538.24,0.00013698,2]
[381008425,1755939054829,-4335.37,0.00013698,2]
[381008426,1755939054839,-426.6,0.00013698,2]
[381008427,1755939054848,-562.49,0.00013698,2]
[381008428,1755939054857,-782.78,0.00013698,2]
[381008429,1755939054867,-404.06,0.00013698,2]
[381008430,1755939054877,-400.0,0.00013698,2]
[381008431,1755939054887,-400.0,0.00013698,2]
[381008432,1755939054896,-907.47,0.00013698,2]
[381008433,1755939054905,-775.88,0.00013698,2]
[381008434,1755939054915,-400.0,0.00013698,2]
[381008435,1755939054925,-762.43,0.00013698,2]
[381008436,1755939054934,-181.43141766,0.00013698,2]
[381008437,1755939054943,-1307.02,0.00013698,2]
[381008438,1755939054952,-576.9,0.00013698,2]
[381008439,1755939054962,-1007.65,0.00013698,2]
[381008440,1755939054971,-503.95,0.00013698,2]
[381008441,1755939054981,-559.51,0.00013698,2]
[381008442,1755939054990,-400.0,0.00013698,2]
[381008443,1755939054999,-421.91,0.00013698,2]
[381008444,1755939055009,-400.0,0.00013698,2]
[381008445,1755939055019,-400.0,0.00013698,2]
[381008446,1755939055029,-545.69,0.00013698,2]
[381008447,1755939055038,-615.82,0.00013698,2]
[381008448,1755939055047,-521.3,0.00013698,2]
[381008449,1755939055056,-743.95,0.00013698,2]
[381008450,1755939055066,-400.0,0.00013698,2]
[381008451,1755939055075,-782.98,0.00013698,2]
[381008452,1755939055085,-400.0,0.00013698,2]
[381008453,1755939055094,-1476.63,0.00013698,2]
[381008454,1755939055104,-400.0,0.00013698,2]
[381008455,1755939055114,-12873.11,0.00013698,2]
[381008456,1755939055124,-669.75,0.00013698,2]
[381008457,1755939055133,-807.4,0.00013698,2]
[381008458,1755939055143,-683.45,0.00013698,2]
[381008459,1755939055153,-400.0,0.00013698,2]
[381008460,1755939055162,-462.62,0.00013698,2]
[381008461,1755939055171,-400.0,0.00013698,2]
[381008462,1755939055180,-400.0,0.00013698,2]
[381008463,1755939055190,-507.71,0.00013698,2]
[381008464,1755939055200,-400.0,0.00013698,2]
[381008465,1755939055209,-1271.98,0.00013698,2]
[381008466,1755939055218,-1594.64,0.00013698,2]
[381008467,1755939055227,-1104.28,0.00013698,2]
[381008468,1755939055237,-400.0,0.00013698,2]
[381008469,1755939055246,-400.0,0.00013698,2]
[381008470,1755939055256,-400.0,0.00013698,2]
[381008471,1755939055266,-568.82,0.00013698,2]
[381008472,1755939055275,-734.9,0.00013698,2]
[381008473,1755939055284,-735.83,0.00013698,2]
[381008474,1755939055294,-1088.25,0.00013698,2]
[381008475,1755939055303,-459.89,0.00013698,2]
[381008476,1755939055313,-893.15,0.00013698,2]
[381008477,1755939055323,-400.38920288,0.00013698,2]
[381008478,1755939055333,-575.51,0.00013698,2]
[381008479,1755939055342,-519.87,0.00013698,2]
[381008480,1755939055352,-400.0,0.00013698,2]
[381008481,1755939055361,-400.0,0.00013698,2]
[381008482,1755939055372,-1006.21,0.00013698,2]
[381008483,1755939055382,-400.0,0.00013698,2]
[381008484,1755939055391,-400.0,0.00013698,2]
[381008485,1755939055401,-664.59,0.00013698,2]
[381008486,1755939055410,-2096.81,0.00013698,2]
[381008487,1755939055420,-1219.14,0.00013698,2]
[381008488,1755939055429,-400.0,0.00013698,2]
[381008489,1755939055438,-400.0,0.00013698,2]
[381008490,1755939055448,-1014.43,0.00013698,2]
[381008491,1755939055457,-400.0,0.00013698,2]
[381008492,1755939055467,-2729.83,0.00013698,2]
[381008493,1755939055476,-400.0,0.00013698,2]
[381008494,1755939055485,-400.0,0.00013698,2]
[381008495,1755939055495,-400.0,0.00013698,2]
[381008496,1755939055504,-400.0,0.00013698,2]
[381008497,1755939055513,-564.28,0.00013698,2]
[381008498,1755939055523,-400.0,0.00013698,2]
[381008499,1755939055532,-400.0,0.00013698,2]
[381008500,1755939055541,-446.32,0.00013698,2]
[381008501,1755939055550,-400.0,0.00013698,2]
[381008502,1755939055560,-466.46,0.00013698,2]
[381008503,1755939055570,-505.86,0.00013698,2]
[381008504,1755939055657,-400.0,0.00013698,2]
[381008505,1755939055667,-578.22,0.00013698,2]
[381008506,1755939055676,-400.0,0.00013698,2]
[381008507,1755939055685,-432.01,0.00013698,2]
[381008508,1755939055694,-458.79,0.00013698,2]
[381008509,1755939055707,-400.35788675,0.00013698,2]
[381008510,1755939055716,-4548.89,0.00013698,2]
[381008511,1755939055725,-902.17,0.00013698,2]
[381008512,1755939055734,-945.49,0.00013698,2]
[381008513,1755939055744,-400.0,0.00013698,2]
[381008514,1755939055753,-400.32946024,0.00013698,2]
[381008515,1755939055763,-890.11,0.00013698,2]
[381008516,1755939055771,-425.39,0.00013698,2]
[381008517,1755939055781,-400.0,0.00013698,2]
[381008518,1755939055790,-783.24,0.00013698,2]
[381008519,1755939055799,-704.32,0.00013698,2]
[381008520,1755939055808,-637.51,0.00013698,2]
[381008521,1755939055817,-673.78,0.00013698,2]
[381008522,1755939055826,-400.0,0.00013698,2]
[381008523,1755939055836,-400.0,0.00013698,2]
[381008524,1755939055846,-463.46,0.00013698,2]
[381008525,1755939055855,-401.11132935,0.00013698,2]
[381008526,1755939055864,-736.8,0.00013698,2]
[381008527,1755939055873,-400.0,0.00013698,2]
[381008528,1755939055882,-400.0,0.00013698,2]
[381008529,1755939055892,-400.0,0.00013698,2]
[381008530,1755939055901,-400.57632326,0.00013698,2]
[381008531,1755939055911,-500.0,0.00013699,2]
[381008532,1755939055920,-1814.31,0.00013699,2]
[381008533,1755939055930,-610.0,0.00013699,2]
[381008534,1755939055939,-200.0,0.00013699,2]
[381008535,1755939055949,-1000.0,0.00013699,2]
[381008536,1755939055958,-1000.0,0.00013699,2]
[381008537,1755939055967,-398.87,0.00013699,2]
[381008538,1755939055976,-200.0,0.00013699,2]
[381008539,1755939055986,-200.0,0.00013699,2]
[381008540,1755939055995,-200.0,0.00013699,2]
[381008541,1755939056004,-200.253743,0.00013699,2]
[381008542,1755939056015,-3161.71,0.00013699,2]
[381008543,1755939056025,-500.0,0.00013699,2]
[381008544,1755939056034,-500.0,0.00013699,2]
[381008545,1755939056043,-500.0,0.00013699,2]
[381008546,1755939056053,-500.0,0.00013699,2]
[381008547,1755939056063,-500.0,0.00013699,2]
[381008548,1755939056072,-500.0,0.00013699,2]
[381008549,1755939056081,-164.10560054,0.00013699,2]
[381008550,1755939056091,-500.0,0.00013699,2]
[381008551,1755939056100,-500.0,0.00013699,2]
[381008552,1755939056110,-500.0,0.00013699,2]
[381008553,1755939056120,-300.0,0.00013699,2]
[381008554,1755939056129,-150.0,0.00013699,2]
[381008555,1755939056138,-125514.6,0.000137,2]
[381008556,1755939056149,-10344.33,0.000137,2]
[381008557,1755939056159,-4774.64,0.000137,2]
[381008558,1755939056168,-4774.64,0.000137,2]
[381008559,1755939056177,-266.12,0.000137,2]
[381008560,1755939056186,-266.12,0.000137,2]
[381008561,1755939056195,-266.12,0.000137,2]
[381008562,1755939056205,-164.73,0.00013726,2]
[381008563,1755939056214,-799.21,0.00013749,2]
[381008564,1755939056223,-1556.0,0.000138,2]
[381008565,1755939056233,-5888.0,0.00013817,2]
[381008566,1755939056242,-3007.0,0.00013821,2]
[381008567,1755939056251,-151.14,0.00013835,2]
[381008568,1755939056260,-692.54751087,0.00013836,2]
[381008569,1755939056269,-151.20889471,0.00013872,2]
[381008570,1755939056278,-207.0708546,0.00013872,2]
[381008571,1755939056288,-2000.0,0.00013899,2]
[381008572,1755939056297,-1000.0,0.000139,2]
[381008573,1755939056306,-1000.0,0.000139,2]
[381008574,1755939056315,-11489.42587498,0.000139,2]
[381008575,1755939056325,-213.16,0.00013911,2]
[381008576,1755939056337,-889.0,0.00013911,2]
[381008577,1755939056346,-500.0,0.00013911,2]
[381008578,1755939056355,-508.0,0.00013911,2]
[381008579,1755939056364,-500.0,0.00013911,2]
[381008580,1755939056374,-500.0,0.00013911,2]
[381008581,1755939056384,-1249.06795426,0.00013936,2]
[381008582,1755939056394,-169.50061775,0.00013936,2]
[381008583,1755939056403,-170.96340366,0.00013936,2]
[381008584,1755939056413,-3753.43271619,0.00013936,2]
[381008585,1755939056423,-232.0,0.0001395,2]
[381008586,1755939056433,-403.84345816,0.00013972,2]
[381008587,1755939056442,-510.34,0.00013972,2]
[381008588,1755939056451,-400.0,0.00013972,2]
[381008589,1755939056460,-400.0,0.00013972,2]
[381008590,1755939056469,-398.45998195,0.00013972,2]
[381008591,1755939056478,-799.72,0.00013972,2]
[381008592,1755939056487,-400.0,0.00013972,2]
[381008593,1755939056497,-530.1,0.00013972,2]
[381008594,1755939056506,-400.0,0.00013972,2]
[381008595,1755939056515,-541.7,0.00013972,2]
[381008596,1755939056524,-400.0,0.00013972,2]
[381008597,1755939056534,-606.2,0.00013972,2]
[381008598,1755939056542,-400.0,0.00013972,2]
[381008599,1755939056551,-400.0,0.00013972,2]
[381008600,1755939056560,-400.0,0.00013972,2]
[381008601,1755939056569,-531.92,0.00013972,2]
[381008602,1755939056579,-485.88,0.00013972,2]
[381008603,1755939056588,-402.92997794,0.00013972,2]
[381008604,1755939056598,-400.0,0.00013972,2]
[381008605,1755939056607,-400.0,0.00013972,2]
[381008606,1755939056617,-870.85,0.00013972,2]
[381008607,1755939056626,-400.0,0.00013972,2]
[381008608,1755939056635,-489.91,0.00013972,2]
[381008609,1755939056644,-400.0,0.00013972,2]
[381008610,1755939056653,-463.63,0.00013972,2]
[381008611,1755939056662,-609.72,0.00013972,2]
[381008612,1755939056671,-400.0,0.00013972,2]
[381008613,1755939056681,-400.0,0.00013972,2]
[381008614,1755939056690,-400.0,0.00013972,2]
[381008615,1755939056705,-400.0,0.00013972,2]
[381008616,1755939056714,-400.0,0.00013972,2]
[381008617,1755939056724,-282.28945904,0.00013972,2]
[381008618,1755939056733,-400.0,0.00013972,2]
[381008619,1755939056742,-541.93,0.00013972,2]
[381008620,1755939056752,-408.09172711,0.00013972,2]
[381008621,1755939056761,-402.92279521,0.00013972,2]
[381008622,1755939056770,-400.0,0.00013972,2]
[381008623,1755939056780,-400.0,0.00013972,2]
[381008624,1755939056790,-400.0,0.00013972,2]
[381008625,1755939056799,-522.95,0.00013972,2]
[381008626,1755939056808,-400.0,0.00013972,2]
[381008627,1755939056818,-400.0,0.00013972,2]
[381008628,1755939056827,-403.03341983,0.00013972,2]
[381008629,1755939056836,-400.0,0.00013972,2]
[381008630,1755939056845,-402.27000596,0.00013972,2]
[381008631,1755939056854,-400.0,0.00013972,2]
[381008632,1755939056865,-400.0,0.00013972,2]
[381008633,1755939056877,-400.0,0.00013972,2]
[381008634,1755939056887,-559.49,0.00013972,2]
[381008635,1755939056896,-400.0,0.00013972,2]
[381008636,1755939056905,-400.0,0.00013972,2]
[381008637,1755939056915,-441.42,0.00013972,2]
[381008638,1755939056925,-400.0,0.00013972,2]
[381008639,1755939056934,-400.0,0.00013972,2]
[381008640,1755939056943,-400.0,0.00013972,2]
[381008641,1755939056953,-490.21,0.00013972,2]
[381008642,1755939056962,-400.0,0.00013972,2]
[381008643,1755939056971,-402.00173781,0.00013972,2]
[381008644,1755939056980,-400.0,0.00013972,2]
[381008645,1755939056989,-400.0,0.00013972,2]
[381008646,1755939056998,-400.0,0.00013972,2]
[381008647,1755939057007,-400.0,0.00013972,2]
[381008648,1755939057016,-400.0,0.00013972,2]
[381008649,1755939057026,-400.0,0.00013972,2]
[381008650,1755939057035,-466.59,0.00013972,2]
[381008651,1755939057044,-400.0,0.00013972,2]
[381008652,1755939057058,-400.0,0.00013972,2]
[381008653,1755939057067,-404.97,0.00013972,2]
[381008654,1755939057076,-400.0,0.00013972,2]
[381008655,1755939057085,-623.74,0.00013972,2]
[381008656,1755939057094,-400.0,0.00013972,2]
[381008657,1755939057103,-400.0,0.00013972,2]
[381008658,1755939057112,-400.0,0.00013972,2]
[381008659,1755939057122,-400.0,0.00013972,2]
[381008660,1755939057131,-770.94,0.00013972,2]
[381008661,1755939057140,-731.85,0.00013972,2]
[381008662,1755939057149,-689.5,0.00013972,2]
[381008663,1755939057158,-498.1,0.00013972,2]
[381008664,1755939057168,-486.31,0.00013972,2]
[381008665,1755939057177,-568.76,0.00013972,2]
[381008666,1755939057186,-400.0,0.00013972,2]
[381008667,1755939057195,-400.0,0.00013972,2]
[381008668,1755939057204,-414.07,0.00013972,2]
[381008669,1755939057213,-400.0,0.00013972,2]
[381008670,1755939057222,-635.33,0.00013972,2]
[381008671,1755939057231,-400.0,0.00013972,2]
[381008672,1755939057240,-468.07,0.00013972,2]
[381008673,1755939057249,-400.0,0.00013972,2]
[381008674,1755939057259,-586.22,0.00013972,2]
[381008675,1755939057268,-400.0,0.00013972,2]
[381008676,1755939057277,-400.0,0.00013972,2]
[381008677,1755939057286,-400.0,0.00013972,2]
[381008678,1755939057295,-416.31,0.00013972,2]
[381008679,1755939057304,-443.11,0.00013972,2]
[381008680,1755939057314,-512.45,0.00013972,2]
[381008681,1755939057323,-471.64,0.00013972,2]
[381008682,1755939057332,-400.0,0.00013972,2]
[381008683,1755939057343,-820.85,0.00013972,2]
[381008684,1755939057353,-400.0,0.00013972,2]